bitfinex/quotes_SOLUSD_20230116
["timestamp","ask_amount","ask_price","bid_price","bid_amount"]
[1673886726505,20.0,23.081,23.06,17.0]
[1673886726907,20.0,23.081,23.059,0.55315075]
[1673886727127,32.52,23.08,23.059,0.55315075]
[1673886727341,20.0,23.079,23.059,0.55315075]
[1673886727749,32.52,23.078,23.059,0.55315075]
[1673886728172,32.51,23.088,23.059,19.65606323]
[1673886728394,231.2513,23.088,23.06,18.16]
[1673886728614,231.2513,23.088,23.06,17.0]
[1673886728922,231.2513,23.088,23.061,19.10291248]
[1673886729139,263.7613,23.088,23.062,17.0]
[1673886729534,263.7613,23.088,23.06,17.0]
[1673886729848,21.46196354,23.087,23.059,0.55315075]
[1673886730270,20.0,23.085,23.059,0.55315075]
[1673886730690,53.97196354,23.084,23.059,0.55315075]
[1673886730911,20.0,23.083,23.059,0.55315075]
[1673886731106,41.46196354,23.083,23.059,0.55315075]
[1673886731321,53.97196354,23.082,23.059,0.55315075]
[1673886731736,20.0,23.081,23.059,0.55315075]
[1673886731949,20.0,23.08,23.059,0.55315075]
[1673886732172,20.0,23.079,23.059,0.55315075]
[1673886732378,20.0,23.078,23.059,0.55315075]
[1673886732580,52.52,23.078,23.059,0.55315075]
[1673886732790,38.46196354,23.077,23.059,0.55315075]
[1673886733005,132.22836354,23.077,23.059,0.55315075]
[1673886733215,73.98196354,23.076,23.059,0.55315075]
[1673886733551,21.46196354,23.075,23.059,0.55315075]
[1673886733738,139.66116354,23.075,23.059,0.55315075]
[1673886734165,20.0,23.073,23.059,0.55315075]
[1673886734591,20.0,23.071,23.042,43.25]
[1673886734909,21.46196354,23.07,23.042,43.25]
[1673886735105,53.99196354,23.07,23.042,43.25]
[1673886735316,20.0,23.069,23.042,43.25]
[1673886735521,41.46196354,23.069,23.042,43.25]
[1673886735740,53.99196354,23.068,23.042,43.25]
[1673886735952,20.0,23.067,23.042,43.25]
[1673886736167,41.46196354,23.067,23.042,43.25]
[1673886736372,167.21146354,23.066,23.042,43.25]
[1673886736802,41.46196354,23.065,23.042,43.25]
[1673886737001,20.0,23.065,23.042,43.25]
[1673886737209,21.46196354,23.064,23.042,43.25]
[1673886737828,20.0,23.063,23.042,43.25]
[1673886738254,21.46196354,23.062,23.036,90.2964]
[1673886738676,20.0,23.061,23.036,90.2964]
[1673886739212,20.0,23.059,23.036,90.2964]
[1673886739637,42.92392708,23.058,23.036,90.2964]
[1673886739854,54.01196354,23.058,23.036,90.2964]
[1673886740067,54.01196354,23.058,23.025,108.3098]
[1673886740253,41.46196354,23.057,23.026,20.0]
[1673886740673,21.46196354,23.056,23.026,20.0]
[1673886740905,20.0,23.055,23.025,108.3098]
[1673886741433,20.0,23.057,23.026,5.01105]
[1673886741631,128.5562,23.061,23.026,24.11396248]
[1673886741955,128.5562,23.061,23.027,39.10291248]
[1673886742145,108.5562,23.061,23.029,20.0]
[1673886742356,108.5562,23.061,23.031,20.0]
[1673886742582,108.5562,23.061,23.032,22.00975]
[1673886742781,108.5562,23.061,23.033,5.00953]
[1673886742997,20.0,23.06,23.034,17.0]
[1673886743333,20.0,23.06,23.035,24.11200248]
[1673886743521,20.0,23.06,23.036,22.00888]
[1673886743733,20.0,23.06,23.037,5.00866]
[1673886743959,116.9763,23.066,23.038,17.0]
[1673886744167,116.9763,23.066,23.039,5.00823]
[1673886744363,116.9763,23.066,23.04,17.0]
[1673886744574,20.0,23.069,23.041,5.00779]
[1673886744795,20.0,23.071,23.042,17.0]
[1673886744985,20.0,23.071,23.044,20.0]
[1673886745200,20.0,23.071,23.045,22.00692]
[1673886745852,21.46196354,23.074,23.046,45.33115082]
[1673886746052,52.51,23.087,23.046,45.33115082]
[1673886746053,169.4863,23.087,23.047,22.00649]
[1673886746264,20.0,23.079,23.048,5.00627]
[1673886746475,20.0,23.079,23.049,17.0]
[1673886746680,32.52,23.078,23.048,5.00627]
[1673886746888,20.0,23.077,23.048,5.00627]
[1673886747101,41.46196354,23.077,23.049,19.10291248]
[1673886747318,21.46196354,23.076,23.049,24.10896248]
[1673886748061,20.0,23.075,23.05,17.0]
[1673886749330,21.46196354,23.074,23.049,5.00605]
[1673886749518,20.0,23.073,23.042,23.18]
[1673886749847,20.0,23.073,23.047,19.10291248]
[1673886750057,20.0,23.073,23.048,5.00627]
[1673886750458,21.46196354,23.074,23.048,24.10918248]
[1673886750672,115.6961,23.076,23.048,24.10918248]
[1673886750889,115.6961,23.076,23.049,43.69]
[1673886751101,115.6961,23.076,23.05,25.00584]
[1673886751401,115.6961,23.076,23.051,22.00562]
[1673886751625,115.6961,23.076,23.051,5.00562]
[1673886751822,20.0,23.075,23.051,5.00562]
[1673886752049,20.0,23.075,23.043,20.0]
[1673886752050,20.0,23.075,23.044,19.10291248]
[1673886752267,135.7526,23.075,23.045,25.00692]
[1673886752587,157.21456354,23.075,23.046,5.0067]
[1673886752784,32.53,23.074,23.046,5.0067]
[1673886752978,32.53,23.074,23.037,189.997]
[1673886752979,20.0,23.073,23.038,20.0]
[1673886753191,41.46196354,23.073,23.039,5.00823]
[1673886753432,53.99196354,23.072,23.039,5.00823]
[1673886753611,20.0,23.071,23.039,5.00823]
[1673886754037,53.99196354,23.07,23.04,49.05781749]
[1673886754269,32.53,23.074,23.041,5.00779]
[1673886754478,168.2726,23.075,23.041,53.16851997]
[1673886754692,168.2726,23.075,23.043,20.0]
[1673886754888,168.2726,23.075,23.044,22.00714]
[1673886755101,189.73456354,23.075,23.045,5.00692]
[1673886755310,189.73456354,23.075,23.045,34.06473749]
[1673886755526,189.73456354,23.075,23.046,66.68015962]
[1673886755739,21.46196354,23.074,23.046,66.68015962]
[1673886755946,20.0,23.073,23.047,66.68015962]
[1673886756165,52.53,23.073,23.047,66.68015962]
[1673886756357,21.46196354,23.072,23.048,66.68015962]
[1673886756571,20.0,23.071,23.048,66.68015962]
[1673886756910,21.46196354,23.07,23.049,29.05781749]
[1673886757219,21.46196354,23.07,23.05,17.0]
[1673886757419,32.53,23.069,23.05,17.0]
[1673886757633,32.53,23.069,23.05,46.05781749]
[1673886758800,20.0,23.068,23.05,17.0]
[1673886759111,32.53,23.069,23.051,29.05781749]
[1673886759331,168.2726,23.075,23.052,17.0]
[1673886759952,168.2726,23.075,23.052,46.05781749]
[1673886760371,21.46196354,23.073,23.048,37.62234213]
[1673886760577,53.99196354,23.073,23.048,37.62234213]
[1673886760895,41.46196354,23.072,23.045,24.10983248]
[1673886761319,53.99196354,23.071,23.045,24.10983248]
[1673886761535,20.0,23.07,23.045,24.10983248]
[1673886761757,41.46196354,23.07,23.045,5.00692]
[1673886761932,32.53,23.069,23.046,54.62234213]
[1673886762143,73.99196354,23.07,23.046,54.62234213]
[1673886762358,41.46196354,23.07,23.046,54.62234213]
[1673886763001,41.46196354,23.07,23.047,37.62234213]
[1673886763002,20.0,23.07,23.047,37.62234213]
[1673886763193,32.53,23.069,23.048,17.0]
[1673886764245,20.0,23.068,23.048,17.0]
[1673886766674,54.00196354,23.067,23.045,5.00692]
[1673886766878,20.0,23.066,23.037,114.297]
[1673886767089,41.46196354,23.066,23.037,114.297]
[1673886767292,54.00196354,23.065,23.037,114.297]
[1673886767725,159.99022708,23.064,23.03,117.7838]
[1673886767934,138.52826354,23.064,23.023,480.4328]
[1673886768252,74.00196354,23.063,23.024,6.2287742]
[1673886768574,74.00196354,23.063,23.025,5.01127]
[1673886768886,113.393,23.062,23.027,7.49116233]
[1673886769096,113.393,23.062,23.028,5.01062]
[1673886769344,20.0,23.061,23.03,20.0]
[1673886769513,20.0,23.061,23.031,5.00996]
[1673886769845,20.0,23.061,23.033,20.0]
[1673886770057,20.0,23.061,23.034,22.00931]
[1673886770270,113.393,23.062,23.035,9.62489633]
[1673886770573,117.0663,23.064,23.038,20.0]
[1673886770786,117.0663,23.064,23.039,10.16216471]
[1673886770999,117.0663,23.064,23.04,5.00801]
[1673886771197,117.0663,23.064,23.04,11.78152575]
[1673886771408,117.0663,23.064,23.041,17.0]
[1673886771614,20.0,23.063,23.041,17.0]
[1673886772038,112.8179,23.062,23.041,36.10291248]
[1673886772261,112.8179,23.062,23.041,17.0]
[1673886772593,20.0,23.061,23.041,17.0]
[1673886772889,20.0,23.061,23.04,5.00801]
[1673886773104,20.0,23.061,23.036,122.83799516]
[1673886773105,52.54,23.061,23.036,122.83799516]
[1673886773299,52.54,23.061,23.036,116.5323]
[1673886773841,20.0,23.059,23.036,116.5323]
[1673886774365,74.01196354,23.059,23.026,115.764]
[1673886774574,74.01196354,23.059,23.027,5.94301764]
[1673886774885,74.01196354,23.059,23.028,20.0]
[1673886775082,74.01196354,23.059,23.029,5.70892539]
[1673886775302,74.01196354,23.059,23.029,29.82223787]
[1673886775509,74.01196354,23.059,23.03,19.10291248]
[1673886775828,32.55,23.059,23.032,6.86346358]
[1673886776044,112.8179,23.062,23.033,22.00953]
[1673886776265,112.8179,23.062,23.034,12.78425688]
[1673886776456,112.8179,23.062,23.036,20.0]
[1673886776661,112.8179,23.062,23.037,27.99789895]
[1673886776878,112.8179,23.062,23.039,5.94442546]
[1673886777200,112.8179,23.062,23.04,22.00801]
[1673886777599,112.8179,23.062,23.041,6.66930306]
[1673886777807,112.8179,23.062,23.042,17.0]
[1673886778022,112.8179,23.062,23.042,36.10291248]
[1673886778342,112.8179,23.062,23.043,26.6694007]
[1673886778555,112.8179,23.062,23.044,22.27293522]
[1673886778775,112.8179,23.062,23.044,41.3758477]
[1673886779089,112.8179,23.062,23.047,7.80816641]
[1673886779408,112.8179,23.062,23.048,17.0]
[1673886780230,112.8179,23.062,23.047,17.0]
[1673886781936,52.54,23.061,23.042,19.10291248]
[1673886782146,20.0,23.061,23.042,19.10291248]
[1673886782359,20.0,23.061,23.037,20.0]
[1673886782571,52.54,23.061,23.037,39.10291248]
[1673886782773,20.0,23.061,23.036,108.2625]
[1673886782983,32.55,23.06,23.038,19.10291248]
[1673886783408,20.0,23.059,23.038,19.10291248]
[1673886783625,20.0,23.059,23.036,108.2625]
[1673886783839,32.55,23.058,23.037,19.10291248]
[1673886784145,20.0,23.057,23.037,19.10291248]
[1673886785706,32.55,23.06,23.039,20.0]
[1673886785917,112.8179,23.062,23.041,20.0]
[1673886786131,112.8179,23.062,23.042,17.0]
[1673886786451,32.53,23.069,23.042,36.10291248]
[1673886786652,32.53,23.069,23.043,19.10291248]
[1673886786867,32.53,23.069,23.044,17.0]
[1673886787274,32.53,23.069,23.045,19.10291248]
[1673886787485,32.53,23.069,23.046,17.0]
[1673886787932,32.53,23.069,23.046,36.10291248]
[1673886788558,20.0,23.063,23.046,17.0]
[1673886788973,20.0,23.063,23.045,17.0]
[1673886789507,52.54,23.063,23.044,19.10291248]
[1673886789699,52.54,23.063,23.03,32.59]
[1673886789914,118.5698,23.062,23.037,19.10291248]
[1673886790228,20.0,23.061,23.038,20.0]
[1673886790656,20.0,23.061,23.04,20.0]
[1673886790863,20.0,23.061,23.041,17.0]
[1673886791057,118.5698,23.062,23.042,20.0]
[1673886791269,118.5698,23.062,23.043,17.0]
[1673886791480,118.5698,23.062,23.043,36.10291248]
[1673886791711,118.5698,23.062,23.044,19.10291248]
[1673886791911,118.5698,23.062,23.045,17.0]
[1673886792239,118.5698,23.062,23.045,19.10291248]
[1673886792664,20.0,23.061,23.045,19.10291248]
[1673886792975,118.5698,23.062,23.045,19.10291248]
[1673886793584,118.5698,23.062,23.046,17.0]
[1673886795076,20.0,23.061,23.046,17.0]
[1673886795391,20.0,23.061,23.039,7.2335972]
[1673886795706,20.0,23.061,23.037,5.00866]
[1673886795707,52.54,23.061,23.037,5.00866]
[1673886795920,52.54,23.061,23.037,10.77048853]
[1673886797272,52.54,23.061,23.037,5.00866]
[1673886797481,52.54,23.061,23.03,7.39889441]
[1673886797692,52.54,23.061,23.031,5.00996]
[1673886797899,32.54,23.061,23.032,20.0]
[1673886798114,32.54,23.061,23.033,12.71143772]
[1673886798328,20.0,23.06,23.034,5.00931]
[1673886798533,20.0,23.06,23.033,7.70190772]
[1673886798858,32.55,23.059,23.035,19.10291248]
[1673886799276,20.0,23.058,23.035,19.10291248]
[1673886799479,20.0,23.058,23.033,7.70190772]
[1673886799691,32.55,23.057,23.033,7.70190772]
[1673886800012,32.55,23.057,23.035,20.0]
[1673886800328,20.0,23.058,23.033,6.66876561]
[1673886800739,20.0,23.058,23.034,19.10291248]
[1673886800740,32.55,23.057,23.034,19.10291248]
[1673886800956,32.55,23.057,23.033,25.77167809]
[1673886801167,32.55,23.057,23.034,25.28233702]
[1673886801478,32.55,23.057,23.034,5.28233702]
[1673886801689,32.55,23.057,23.035,17.0]
[1673886801904,32.55,23.057,23.035,36.10291248]
[1673886802223,32.55,23.057,23.036,19.10291248]
[1673886802545,32.55,23.057,23.037,17.0]
[1673886802933,32.55,23.059,23.039,20.0]
[1673886803149,118.5698,23.062,23.04,23.35478292]
[1673886803359,118.5698,23.062,23.041,7.2220828]
[1673886803589,118.5698,23.062,23.042,17.0]
[1673886803779,118.5698,23.062,23.042,36.10291248]
[1673886803983,118.5698,23.062,23.043,19.10291248]
[1673886804211,118.5698,23.062,23.044,17.0]
[1673886804635,118.5698,23.062,23.045,19.10291248]
[1673886804828,118.5698,23.062,23.046,17.0]
[1673886805255,32.54,23.067,23.047,5.99536639]
[1673886805476,114.2562,23.073,23.049,20.0]
[1673886805685,114.2562,23.073,23.05,6.84979479]
[1673886805979,114.2562,23.073,23.052,6.12984033]
[1673886806192,114.2562,23.073,23.053,17.0]
[1673886806405,114.2562,23.073,23.053,36.10291248]
[1673886806719,114.2562,23.073,23.054,19.10291248]
[1673886806941,114.2562,23.073,23.055,17.0]
[1673886807475,20.0,23.072,23.055,17.0]
[1673886807678,114.2562,23.073,23.055,17.0]
[1673886808319,20.0,23.072,23.055,17.0]
[1673886809355,114.2562,23.073,23.055,17.0]
[1673886809589,114.2562,23.073,23.053,17.0]
[1673886809898,114.2562,23.073,23.053,36.10291248]
[1673886810106,114.2562,23.073,23.054,4.44525153]
[1673886810314,114.2562,23.073,23.055,17.0]
[1673886810933,32.52,23.081,23.056,5.00453]
[1673886811143,141.8752,23.086,23.057,24.07484614]
[1673886811354,109.3652,23.086,23.059,20.0]
[1673886811564,109.3652,23.086,23.06,22.00366]
[1673886811880,109.3652,23.086,23.062,20.0]
[1673886812096,109.3652,23.086,23.063,22.00301]
[1673886812317,109.3652,23.086,23.065,20.0]
[1673886812632,109.3652,23.086,23.066,22.00236]
[1673886812819,32.49,23.099,23.068,4.02278787]
[1673886813157,119.319,23.098,23.069,30.90876987]
[1673886813468,119.319,23.098,23.071,20.0]
[1673886813661,119.319,23.098,23.072,11.92514235]
[1673886813871,119.319,23.098,23.073,22.00085]
[1673886814088,119.319,23.098,23.074,10.14557641]
[1673886814411,119.319,23.098,23.077,4.11589816]
[1673886814634,119.319,23.098,23.078,17.0]
[1673886814838,119.319,23.098,23.08,20.0]
[1673886815028,119.319,23.098,23.081,23.55287152]
[1673886815234,119.319,23.098,23.081,42.655784]
[1673886815459,32.49,23.097,23.077,4.99998]
[1673886815654,20.0,23.09,23.066,6.6641153]
[1673886816496,32.5,23.089,23.062,113.0311]
[1673886816925,32.5,23.089,23.061,5.71352068]
[1673886817257,32.5,23.089,23.064,20.0]
[1673886817451,115.568,23.088,23.065,4.47588805]
[1673886817663,115.568,23.088,23.066,17.0]
[1673886817880,32.51,23.087,23.067,27.91459815]
[1673886818116,140.7889,23.087,23.068,17.0]
[1673886818415,20.0,23.086,23.068,17.0]
[1673886818720,140.7889,23.087,23.068,19.10291248]
[1673886818923,32.51,23.085,23.069,17.0]
[1673886819135,32.51,23.086,23.069,17.0]
[1673886819347,20.0,23.085,23.068,17.0]
[1673886821145,32.51,23.086,23.066,36.10291248]
[1673886821342,108.2789,23.087,23.068,19.10291248]
[1673886821553,108.2789,23.087,23.069,17.0]
[1673886821966,108.2789,23.087,23.07,39.10291248]
[1673886822174,32.5,23.095,23.071,17.0]
[1673886822389,20.0,23.093,23.072,4.01217299]
[1673886822702,20.0,23.093,23.073,19.10291248]
[1673886822912,20.0,23.093,23.074,17.0]
[1673886824071,20.0,23.093,23.064,20.0]
[1673886824283,20.0,23.093,23.061,5.00345]
[1673886824284,32.5,23.09,23.061,5.00345]
[1673886824499,52.5,23.09,23.061,5.00345]
[1673886825223,20.0,23.089,23.062,19.10291248]
[1673886825434,20.0,23.089,23.062,24.21360565]
[1673886825660,149.2315,23.088,23.063,21.62655813]
[1673886825875,149.2315,23.088,23.064,12.89516123]
[1673886826082,149.2315,23.088,23.065,21.57367345]
[1673886826293,20.0,23.087,23.065,40.67658593]
[1673886826503,20.0,23.087,23.065,36.10291248]
[1673886826728,20.0,23.087,23.065,17.0]
[1673886826729,32.51,23.086,23.065,17.0]
[1673886827048,20.0,23.085,23.065,17.0]
[1673886827266,20.0,23.085,23.064,17.0]
[1673886827456,32.51,23.084,23.063,19.10291248]
[1673886827667,20.0,23.083,23.058,6.47046271]
[1673886827875,132.7431,23.083,23.056,6.85592313]
[1673886828190,20.0,23.081,23.056,6.85592313]
[1673886828821,20.0,23.081,23.057,17.0]
[1673886829142,32.51,23.082,23.059,5.53860837]
[1673886829356,32.51,23.086,23.06,22.00366]
[1673886829555,112.386,23.101,23.083,33.15674865]
[1673886829761,112.386,23.101,23.084,17.0]
[1673886830513,112.386,23.101,23.085,54.51230049]
[1673886830822,112.386,23.101,23.086,64.87053093]
[1673886831042,20.0,23.105,23.086,64.87053093]
[1673886831237,20.0,23.105,23.087,55.74291752]
[1673886831238,39.0,23.091,23.087,55.74291752]
[1673886831870,39.0,23.091,23.087,47.87053093]
[1673886832066,39.0,23.091,23.086,36.10291248]
[1673886832712,39.0,23.091,23.086,17.0]
[1673886834170,39.0,23.091,23.078,44.23053093]
[1673886834512,32.5,23.09,23.07,19.10291248]
[1673886834908,32.5,23.09,23.063,4.61947233]
[1673886835118,32.5,23.09,23.056,19.10291248]
[1673886835119,110.7833,23.089,23.056,19.10291248]
[1673886835448,20.0,23.088,23.057,6.18597626]
[1673886835765,164.2521,23.088,23.062,27.06348033]
[1673886836168,164.2521,23.088,23.063,19.10291248]
[1673886839330,164.2521,23.088,23.064,17.0]
[1673886839762,164.2521,23.088,23.065,19.10291248]
[1673886840081,164.2521,23.088,23.066,17.0]
[1673886840610,164.2521,23.088,23.066,19.10291248]
[1673886840812,164.2521,23.088,23.051,4.2236775]
[1673886841007,164.2521,23.088,23.056,19.10291248]
[1673886841960,164.2521,23.088,23.057,17.0]
[1673886842805,164.2521,23.088,23.058,5.289789]
[1673886843134,164.2521,23.088,23.059,17.0]
[1673886846386,164.2521,23.088,23.059,36.10291248]
[1673886847234,164.2521,23.088,23.059,66.61118545]
[1673886847554,164.2521,23.088,23.059,36.10291248]
[1673886848712,164.2521,23.088,23.06,70.96132879]
[1673886848930,20.0,23.086,23.049,116.9756]
[1673886849133,20.0,23.086,23.05,20.0]
[1673886849350,32.51,23.085,23.051,5.24248692]
[1673886849545,32.51,23.085,23.052,5.0054]
[1673886849750,32.51,23.085,23.052,9.42913284]
[1673886850082,20.0,23.084,23.055,7.72803348]
[1673886850295,20.0,23.084,23.056,17.0]
[1673886850479,32.51,23.083,23.056,36.10291248]
[1673886850692,32.51,23.083,23.057,19.10291248]
[1673886850903,32.51,23.083,23.058,17.0]
[1673886851329,32.51,23.083,23.058,36.10291248]
[1673886853029,32.51,23.083,23.058,17.0]
[1673886853659,32.51,23.083,23.036,90.1009]
[1673886853852,20.0,23.082,23.05,20.0]
[1673886854278,20.0,23.08,23.05,20.0]
[1673886854701,32.52,23.079,23.05,20.0]
[1673886854927,113.9179,23.078,23.052,20.0]
[1673886855234,113.9179,23.078,23.053,23.82215051]
[1673886855443,32.52,23.077,23.055,6.73146737]
[1673886855637,113.9179,23.078,23.056,17.0]
[1673886855843,32.51,23.085,23.057,25.00432]
[1673886856057,144.4694,23.087,23.058,27.0715939]
[1673886856269,144.4694,23.087,23.06,20.0]
[1673886856495,144.4694,23.087,23.061,22.00345]
[1673886856808,144.4694,23.087,23.063,4.88634976]
[1673886856998,144.4694,23.087,23.064,17.0]
[1673886857436,144.4694,23.087,23.065,19.10291248]
[1673886857648,144.4694,23.087,23.066,17.0]
[1673886858050,144.4694,23.087,23.066,36.10291248]
[1673886860508,144.4694,23.087,23.063,7.52517156]
[1673886861738,144.4694,23.087,23.061,5.00345]
[1673886861949,20.0,23.086,23.055,23.9682573]
[1673886862160,20.0,23.086,23.056,20.0]
[1673886862375,32.51,23.085,23.056,39.10291248]
[1673886862690,32.51,23.085,23.058,20.0]
[1673886862901,52.51,23.086,23.059,5.00388]
[1673886863112,52.51,23.086,23.061,20.0]
[1673886863317,52.51,23.086,23.062,17.0]
[1673886863528,52.51,23.086,23.062,36.10291248]
[1673886863970,52.51,23.086,23.063,19.10291248]
[1673886864180,52.51,23.086,23.064,17.0]
[1673886864584,52.51,23.086,23.065,19.10291248]
[1673886864796,52.51,23.086,23.066,17.0]
[1673886865440,52.51,23.086,23.062,119.0909]
[1673886868191,52.51,23.086,23.063,17.0]
[1673886869549,32.51,23.086,23.064,19.10291248]
[1673886869733,144.4694,23.087,23.066,20.0]
[1673886869944,144.4694,23.087,23.067,17.0]
[1673886870151,144.4694,23.087,23.067,36.10291248]
[1673886870377,20.0,23.086,23.067,36.10291248]
[1673886871327,20.0,23.086,23.054,50.72]
[1673886871545,20.0,23.084,23.054,20.0]
[1673886871855,20.0,23.084,23.056,19.10291248]
[1673886872069,32.51,23.083,23.056,19.10291248]
[1673886872257,20.0,23.082,23.056,19.10291248]
[1673886872685,20.0,23.08,23.056,19.10291248]
[1673886873107,32.52,23.079,23.056,19.10291248]
[1673886873331,20.0,23.078,23.057,17.0]
[1673886873848,20.0,23.078,23.058,19.10291248]
[1673886874068,20.0,23.076,23.059,17.0]
[1673886874271,20.0,23.076,23.058,19.10291248]
[1673886874892,32.52,23.075,23.041,43.72]
[1673886875106,150.5319,23.075,23.042,19.10291248]
[1673886875849,20.0,23.074,23.043,20.0]
[1673886876385,32.53,23.073,23.044,19.10291248]
[1673886876571,20.0,23.072,23.044,19.10291248]
[1673886876782,20.0,23.072,23.045,17.0]
[1673886876995,32.53,23.071,23.045,17.0]
[1673886877222,32.53,23.071,23.046,49.61118545]
[1673886877622,32.53,23.071,23.047,19.10291248]
[1673886878043,32.53,23.071,23.048,17.0]
[1673886878364,32.53,23.071,23.049,19.10291248]
[1673886878575,32.53,23.071,23.05,17.0]
[1673886879321,20.0,23.07,23.05,17.0]
[1673886879723,32.53,23.069,23.034,43.25]
[1673886879961,20.0,23.068,23.045,19.10291248]
[1673886880150,32.53,23.069,23.045,19.10291248]
[1673886880368,32.53,23.069,23.046,20.0]
[1673886880583,20.0,23.07,23.046,20.0]
[1673886880788,20.0,23.07,23.047,19.10291248]
[1673886880998,32.53,23.069,23.047,19.10291248]
[1673886881209,32.53,23.069,23.048,17.0]
[1673886881636,32.53,23.069,23.049,19.10291248]
[1673886882793,32.53,23.069,23.038,20.0]
[1673886882980,32.53,23.069,23.05,17.0]
[1673886886880,32.53,23.069,23.039,5.00823]
[1673886887090,20.0,23.068,23.037,108.7904]
[1673886887525,20.0,23.066,23.037,108.7904]
[1673886887723,117.3277,23.065,23.037,108.7904]
[1673886888065,20.0,23.064,23.037,108.7904]
[1673886888583,32.54,23.063,23.037,108.7904]
[1673886889004,117.3277,23.065,23.038,30.50827297]
[1673886889191,117.3277,23.065,23.039,22.00823]
[1673886889410,117.3277,23.065,23.041,20.0]
[1673886889611,117.3277,23.065,23.042,22.00757]
[1673886889943,117.3277,23.065,23.042,50.68248248]
[1673886890134,117.3277,23.065,23.043,39.10291248]
[1673886890346,117.3277,23.065,23.044,17.0]
[1673886890560,117.3277,23.065,23.044,36.10291248]
[1673886890771,117.3277,23.065,23.045,38.20582496]
[1673886890983,117.3277,23.065,23.046,17.0]
[1673886891396,32.53,23.069,23.047,35.69291248]
[1673886891609,112.4167,23.073,23.048,37.0]
[1673886891822,112.4167,23.073,23.048,56.10291248]
[1673886892033,112.4167,23.073,23.048,37.0]
[1673886892361,112.4167,23.073,23.049,24.10896248]
[1673886892580,112.4167,23.073,23.05,37.0]
[1673886892765,112.4167,23.073,23.05,61.10875248]
[1673886892978,112.4167,23.073,23.051,19.10291248]
[1673886893221,112.4167,23.073,23.052,37.0]
[1673886893623,112.4167,23.073,23.053,19.10291248]
[1673886893835,112.4167,23.073,23.054,17.0]
[1673886894678,20.0,23.072,23.054,17.0]
[1673886894888,112.4167,23.073,23.052,17.0]
[1673886895073,112.4167,23.073,23.052,20.0]
[1673886895285,112.4167,23.073,23.053,17.0]
[1673886895913,32.53,23.074,23.053,17.0]
[1673886896140,147.0559,23.081,23.054,54.61615545]
[1673886896349,114.5359,23.081,23.056,20.0]
[1673886896553,114.5359,23.081,23.057,22.00432]
[1673886896763,114.5359,23.081,23.058,5.0041]
[1673886896998,114.5359,23.081,23.059,17.0]
[1673886897209,20.0,23.08,23.059,17.0]
[1673886897414,20.0,23.08,23.059,36.10291248]
[1673886897630,20.0,23.08,23.06,19.10291248]
[1673886897839,20.0,23.08,23.061,17.0]
[1673886898377,114.5359,23.081,23.061,36.10291248]
[1673886900056,32.51,23.086,23.062,35.51150297]
[1673886900270,20.0,23.087,23.063,22.00301]
[1673886900454,32.51,23.085,23.061,17.0]
[1673886900665,32.51,23.086,23.061,36.10291248]
[1673886900893,20.0,23.083,23.061,17.0]
[1673886901305,20.0,23.081,23.061,17.0]
[1673886902363,32.51,23.084,23.062,20.0]